[Event "Titled Tuesday Blitz November 08 Late 2022"]
[White "Zhigalko, Sergei"]
[Black "Adewumi, Tanitoluwa"]
[WhiteFideId "13502956"]
[BlackFideId "30966396"]
[WhiteElo "2662"]
[BlackElo "2558"]
[Result "1-0"]
[Round "09"]
[TimeControl "180+1"]
[Date "2022.11.08"]
[WhiteClock "0:01:33"]
[BlackClock "0:00:19"]

1. e4 {[%clk 0:02:58]}  c5 {[%clk 0:02:57]} 2. Nf3 {[%clk 0:02:58]}  e6 {[%clk 0:02:56]} 3. c3 {[%clk 0:02:59]}  Nf6 {[%clk 0:02:53]} 4. e5 {[%clk 0:02:59]}  Nd5 {[%clk 0:02:54]} 5. Bc4 {[%clk 0:03:00]}  Nc6 {[%clk 0:02:49]} 6. d4 {[%clk 0:02:59]}  cxd4 {[%clk 0:02:48]} 7. cxd4 {[%clk 0:03:00]}  d6 {[%clk 0:02:48]} 8. O-O {[%clk 0:03:00]}  Be7 {[%clk 0:02:47]} 9. Bd2 {[%clk 0:03:01]}  O-O {[%clk 0:02:44]} 10. Nc3 {[%clk 0:03:01]}  Nxc3 {[%clk 0:02:42]} 11. Bxc3 {[%clk 0:03:02]}  dxe5 {[%clk 0:02:34]} 12. dxe5 {[%clk 0:03:03]}  b6 {[%clk 0:02:27]} 13. Qe2 {[%clk 0:03:01]}  Bb7 {[%clk 0:02:26]} 14. a3 {[%clk 0:03:01]}  Qc7 {[%clk 0:02:23]} 15. Bd3 {[%clk 0:03:01]}  Rad8 {[%clk 0:02:12]} 16. Rfe1 {[%clk 0:02:59]}  Nb8 {[%clk 0:02:03]} 17. Rac1 {[%clk 0:02:54]}  Qd7 {[%clk 0:01:50]} 18. Bb1 {[%clk 0:02:53]}  Qa4 {[%clk 0:01:44]} 19. h3 {[%clk 0:02:26]}  Na6 {[%clk 0:01:33]} 20. Rcd1 {[%clk 0:01:54]}  Nc5 {[%clk 0:01:25]} 21. Nd4 {[%clk 0:01:53]}  Nb3 {[%clk 0:01:15]} 22. Qc2 {[%clk 0:01:49]}  g6 {[%clk 0:01:07]} 23. Nxb3 {[%clk 0:01:47]}  Qc6 {[%clk 0:00:54]} 24. f3 {[%clk 0:01:43]}  Bh4 {[%clk 0:00:51]} 25. Rxd8 {[%clk 0:01:41]}  Rxd8 {[%clk 0:00:50]} 26. Rd1 {[%clk 0:01:41]}  Rc8 {[%clk 0:00:49]} 27. Qe2 {[%clk 0:01:39]}  Qa4 {[%clk 0:00:45]} 28. Bc2 {[%clk 0:01:38]}  Bg3 {[%clk 0:00:40]} 29. Nd4 {[%clk 0:01:33]}  Qe8 {[%clk 0:00:37]} 30. Be4 {[%clk 0:01:33]}  Bd5 {[%clk 0:00:28]} 31. Bxd5 {[%clk 0:01:31]}  exd5 {[%clk 0:00:29]} 32. e6 {[%clk 0:01:32]}  fxe6 {[%clk 0:00:19]} 33. Qxe6+ {[%clk 0:01:33]}  Qxe6 {[%clk 0:00:19]} 34. Nxe6 {[%clk 0:01:33]} 1-0


[Site "https://www.chess.com"]

[Event "Titled Tuesday Blitz November 08 Late 2022"]
[White "Adewumi, Tanitoluwa"]
[Black "Hryzlova, Sofiia"]
[WhiteFideId "30966396"]
[BlackFideId "14174669"]
[WhiteElo "2556"]
[BlackElo "1992"]
[Result "1-0"]
[Round "10"]
[TimeControl "180+1"]
[Date "2022.11.09"]
[WhiteClock "0:00:03"]
[BlackClock "0:00:11"]

1. e4 {[%clk 0:02:37]}  c5 {[%clk 0:03:00]} 2. Nf3 {[%clk 0:02:36]}  d6 {[%clk 0:02:59]} 3. Bb5+ {[%clk 0:02:36]}  Nd7 {[%clk 0:02:59]} 4. c3 {[%clk 0:02:35]}  Nf6 {[%clk 0:02:58]} 5. Bd3 {[%clk 0:02:09]}  Ne5 {[%clk 0:02:48]} 6. Be2 {[%clk 0:02:08]}  Nxf3+ {[%clk 0:02:43]} 7. Bxf3 {[%clk 0:02:04]}  g6 {[%clk 0:02:43]} 8. d4 {[%clk 0:02:01]}  cxd4 {[%clk 0:02:41]} 9. cxd4 {[%clk 0:02:01]}  Bg7 {[%clk 0:02:40]} 10. Nc3 {[%clk 0:02:00]}  O-O {[%clk 0:02:38]} 11. Be3 {[%clk 0:02:01]}  a6 {[%clk 0:02:13]} 12. O-O {[%clk 0:02:00]}  Rb8 {[%clk 0:02:10]} 13. a4 {[%clk 0:01:28]}  b6 {[%clk 0:02:07]} 14. h3 {[%clk 0:01:24]}  Bb7 {[%clk 0:02:06]} 15. Qd3 {[%clk 0:01:22]}  e6 {[%clk 0:02:04]} 16. Rfd1 {[%clk 0:01:20]}  Rc8 {[%clk 0:01:58]} 17. Rac1 {[%clk 0:01:17]}  Nd7 {[%clk 0:01:57]} 18. Qf1 {[%clk 0:01:14]}  Rc7 {[%clk 0:01:53]} 19. Be2 {[%clk 0:01:13]}  Qa8 {[%clk 0:01:52]} 20. Bd3 {[%clk 0:01:11]}  Rfc8 {[%clk 0:01:52]} 21. Qe2 {[%clk 0:01:10]}  Nf6 {[%clk 0:01:46]} 22. f3 {[%clk 0:01:03]}  Nd7 {[%clk 0:01:44]} 23. Ra1 {[%clk 0:00:59]}  Nb8 {[%clk 0:01:28]} 24. Ra3 {[%clk 0:00:57]}  Nc6 {[%clk 0:01:23]} 25. Qf2 {[%clk 0:00:57]}  Nb4 {[%clk 0:01:19]} 26. Bf1 {[%clk 0:00:54]}  d5 {[%clk 0:01:14]} 27. Rb3 {[%clk 0:00:53]}  a5 {[%clk 0:01:02]} 28. Bf4 {[%clk 0:00:51]}  dxe4 {[%clk 0:00:58]} 29. Bxc7 {[%clk 0:00:45]}  Rxc7 {[%clk 0:00:59]} 30. fxe4 {[%clk 0:00:42]}  Bxe4 {[%clk 0:00:59]} 31. Qf4 {[%clk 0:00:34]}  Bc2 {[%clk 0:00:37]} 32. Rxb4 {[%clk 0:00:29]}  axb4 {[%clk 0:00:38]} 33. Qxc7 {[%clk 0:00:27]}  bxc3 {[%clk 0:00:35]} 34. Re1 {[%clk 0:00:17]}  Bxd4+ {[%clk 0:00:23]} 35. Kh1 {[%clk 0:00:16]}  Bf2 {[%clk 0:00:19]} 36. Re2 {[%clk 0:00:13]}  Qxa4 {[%clk 0:00:12]} 37. Qc8+ {[%clk 0:00:10]}  Kg7 {[%clk 0:00:11]} 38. Qxc3+ {[%clk 0:00:11]}  Bd4 {[%clk 0:00:10]} 39. Qxc2 {[%clk 0:00:10]}  Qa1 {[%clk 0:00:11]} 40. Rf2 {[%clk 0:00:04]}  Bxf2 {[%clk 0:00:10]} 41. Qxf2 {[%clk 0:00:05]}  Qa5 {[%clk 0:00:07]} 42. Kh2 {[%clk 0:00:05]}  Qe5+ {[%clk 0:00:07]} 43. g3 {[%clk 0:00:06]}  b5 {[%clk 0:00:07]} 44. Qf3 {[%clk 0:00:04]}  Qxb2+ {[%clk 0:00:05]} 45. Bg2 {[%clk 0:00:05]}  b4 {[%clk 0:00:05]} 46. h4 {[%clk 0:00:04]}  Qd4 {[%clk 0:00:05]} 47. h5 {[%clk 0:00:04]}  Qe5 {[%clk 0:00:02]} 48. h6+ {[%clk 0:00:04]}  Kxh6 {[%clk 0:00:03]} 49. Qxf7 {[%clk 0:00:04]}  b3 {[%clk 0:00:03]} 50. Qb7 {[%clk 0:00:01]}  b2 {[%clk 0:00:03]} 51. Bf3 {[%clk 0:00:01]}  Qc3 {[%clk 0:00:02]} 52. Qb8 {[%clk 0:00:01]}  Qxf3 {[%clk 0:00:02]} 53. Qxb2 {[%clk 0:00:01]}  Qf5 {[%clk 0:00:03]} 54. Qd2+ {[%clk 0:00:01]}  Kg7 {[%clk 0:00:03]} 55. Qd7+ {[%clk 0:00:02]}  Qf7 {[%clk 0:00:04]} 56. Qd4+ {[%clk 0:00:02]}  Kg8 {[%clk 0:00:04]} 57. Qd8+ {[%clk 0:00:02]}  Qf8 {[%clk 0:00:05]} 58. Qd7 {[%clk 0:00:03]}  Qf7 {[%clk 0:00:05]} 59. Qd8+ {[%clk 0:00:03]}  Kg7 {[%clk 0:00:06]} 60. Qd4+ {[%clk 0:00:03]}  Qf6 {[%clk 0:00:07]} 61. Qd7+ {[%clk 0:00:04]}  Kh6 {[%clk 0:00:07]} 62. Qd2+ {[%clk 0:00:04]}  g5 {[%clk 0:00:08]} 63. Qe3 {[%clk 0:00:03]}  Kg6 {[%clk 0:00:07]} 64. Qe4+ {[%clk 0:00:03]}  Qf5 {[%clk 0:00:08]} 65. Qc6 {[%clk 0:00:03]}  h5 {[%clk 0:00:08]} 66. Qe8+ {[%clk 0:00:03]}  Qf7 {[%clk 0:00:08]} 67. Qh8 {[%clk 0:00:03]}  Qf2+ {[%clk 0:00:08]} 68. Kh1 {[%clk 0:00:03]}  Qf3+ {[%clk 0:00:08]} 69. Kh2 {[%clk 0:00:03]}  Qe2+ {[%clk 0:00:08]} 70. Kh1 {[%clk 0:00:03]}  Qd1+ {[%clk 0:00:08]} 71. Kh2 {[%clk 0:00:03]}  Qd2+ {[%clk 0:00:09]} 72. Kh1 {[%clk 0:00:02]}  Qd5+ {[%clk 0:00:09]} 73. Kh2 {[%clk 0:00:03]}  g4 {[%clk 0:00:10]} 74. Qg8+ {[%clk 0:00:02]}  Kf5 {[%clk 0:00:10]} 75. Qh7+ {[%clk 0:00:02]}  Kf6 {[%clk 0:00:10]} 76. Qh6+ {[%clk 0:00:02]}  Ke7 {[%clk 0:00:10]} 77. Qg7+ {[%clk 0:00:02]}  Kd6 {[%clk 0:00:11]} 78. Qf8+ {[%clk 0:00:03]}  Ke5 {[%clk 0:00:11]} 79. Qf4# {[%clk 0:00:03]} 1-0


[Site "https://www.chess.com"]

[Event "Titled Tuesday Blitz November 08 Late 2022"]
[White "Aghasiyev, Kamal"]
[Black "Maksimovic, Bojan"]
[WhiteFideId "13402854"]
[BlackFideId "14408120"]
[WhiteElo "2341"]
[BlackElo "2447"]
[Result "0-1"]
[Round "10"]
[TimeControl "180+1"]
[Date "2022.11.08"]
[WhiteClock "0:00:08"]
[BlackClock "0:00:41"]

1. Nf3 {[%clk 0:03:00]}  c5 {[%clk 0:03:00]} 2. c4 {[%clk 0:02:59]}  g6 {[%clk 0:03:00]} 3. e3 {[%clk 0:02:57]}  Bg7 {[%clk 0:03:01]} 4. d4 {[%clk 0:02:57]}  cxd4 {[%clk 0:03:02]} 5. exd4 {[%clk 0:02:57]}  Nf6 {[%clk 0:03:02]} 6. d5 {[%clk 0:02:53]}  O-O {[%clk 0:03:02]} 7. Nc3 {[%clk 0:02:53]}  e6 {[%clk 0:02:59]} 8. Be2 {[%clk 0:02:53]}  exd5 {[%clk 0:02:59]} 9. cxd5 {[%clk 0:02:53]}  Re8 {[%clk 0:02:58]} 10. O-O {[%clk 0:02:53]}  d6 {[%clk 0:02:58]} 11. Bf4 {[%clk 0:02:52]}  a6 {[%clk 0:02:59]} 12. Re1 {[%clk 0:02:51]}  Nh5 {[%clk 0:02:59]} 13. Be3 {[%clk 0:02:51]}  Nd7 {[%clk 0:02:59]} 14. Rc1 {[%clk 0:02:48]}  Rxe3 {[%clk 0:02:56]} 15. fxe3 {[%clk 0:02:48]}  Qe7 {[%clk 0:02:57]} 16. Bf1 {[%clk 0:02:46]}  Ne5 {[%clk 0:02:57]} 17. Nxe5 {[%clk 0:02:43]}  Bxe5 {[%clk 0:02:58]} 18. Qf3 {[%clk 0:02:43]}  Nf6 {[%clk 0:02:47]} 19. Na4 {[%clk 0:02:36]}  Bg4 {[%clk 0:02:47]} 20. Qf2 {[%clk 0:02:29]}  Ne4 {[%clk 0:02:32]} 21. Qc2 {[%clk 0:02:21]}  Rc8 {[%clk 0:02:32]} 22. Nc3 {[%clk 0:02:03]}  Nxc3 {[%clk 0:02:25]} 23. bxc3 {[%clk 0:02:03]}  Rxc3 {[%clk 0:02:25]} 24. Qd2 {[%clk 0:02:01]}  Qf6 {[%clk 0:02:09]} 25. Be2 {[%clk 0:01:52]}  Bxe2 {[%clk 0:02:04]} 26. Rxe2 {[%clk 0:01:52]}  b5 {[%clk 0:01:40]} 27. Rxc3 {[%clk 0:01:49]}  Bxc3 {[%clk 0:01:41]} 28. Qd3 {[%clk 0:01:45]}  Be5 {[%clk 0:01:41]} 29. Rc2 {[%clk 0:01:30]}  Qh4 {[%clk 0:01:38]} 30. g3 {[%clk 0:01:28]}  Qa4 {[%clk 0:01:38]} 31. Rf2 {[%clk 0:01:20]}  Kg7 {[%clk 0:01:38]} 32. Qc2 {[%clk 0:01:13]}  Qb4 {[%clk 0:01:36]} 33. Qc7 {[%clk 0:01:11]}  Qb1+ {[%clk 0:01:28]} 34. Rf1 {[%clk 0:01:09]}  Qe4 {[%clk 0:01:23]} 35. Qxf7+ {[%clk 0:00:47]}  Kh6 {[%clk 0:01:23]} 36. Qf8+ {[%clk 0:00:47]}  Kg5 {[%clk 0:01:21]} 37. Qe7+ {[%clk 0:00:38]}  Kh6 {[%clk 0:01:21]} 38. Qf8+ {[%clk 0:00:23]}  Kg5 {[%clk 0:01:19]} 39. Rf3 {[%clk 0:00:20]}  Qxd5 {[%clk 0:01:12]} 40. Qe7+ {[%clk 0:00:18]}  Kg4 {[%clk 0:01:13]} 41. Rf1 {[%clk 0:00:12]}  Bxg3 {[%clk 0:00:43]} 42. hxg3 {[%clk 0:00:11]}  Kxg3 {[%clk 0:00:44]} 43. e4 {[%clk 0:00:08]}  Qc5+ {[%clk 0:00:41]} 0-1


[Site "https://www.chess.com"]

[Event "Titled Tuesday Blitz November 08 Late 2022"]
[White "Alexikov, Alexander"]
[Black "Ferreira, Vitor Hugo Vieira"]
[WhiteFideId "14103958"]
[BlackFideId "2119765"]
[WhiteElo "2222"]
[BlackElo "2168"]
[Result "1-0"]
[Round "10"]
[TimeControl "180+1"]
[Date "2022.11.09"]
[WhiteClock "0:00:03"]
[BlackClock "0:00:10"]

1. e4 {[%clk 0:03:00]}  c5 {[%clk 0:02:37]} 2. Nf3 {[%clk 0:03:00]}  d6 {[%clk 0:02:37]} 3. Bb5+ {[%clk 0:02:58]}  Nd7 {[%clk 0:02:36]} 4. d4 {[%clk 0:02:56]}  cxd4 {[%clk 0:02:37]} 5. Qxd4 {[%clk 0:02:56]}  a6 {[%clk 0:02:35]} 6. Bxd7+ {[%clk 0:02:55]}  Bxd7 {[%clk 0:02:35]} 7. c4 {[%clk 0:02:55]}  Rc8 {[%clk 0:02:34]} 8. Nc3 {[%clk 0:02:54]}  Qc7 {[%clk 0:02:34]} 9. Nd2 {[%clk 0:02:28]}  Nf6 {[%clk 0:02:30]} 10. O-O {[%clk 0:02:25]}  e5 {[%clk 0:02:22]} 11. Qd3 {[%clk 0:02:24]}  Be7 {[%clk 0:02:21]} 12. Rd1 {[%clk 0:02:18]}  O-O {[%clk 0:02:20]} 13. b3 {[%clk 0:02:17]}  b5 {[%clk 0:02:20]} 14. Bb2 {[%clk 0:02:16]}  b4 {[%clk 0:02:07]} 15. Ne2 {[%clk 0:02:11]}  Be6 {[%clk 0:01:59]} 16. Nf1 {[%clk 0:02:09]}  Nd7 {[%clk 0:01:58]} 17. Ne3 {[%clk 0:02:06]}  Nc5 {[%clk 0:01:56]} 18. Qc2 {[%clk 0:02:06]}  g6 {[%clk 0:01:41]} 19. Ng3 {[%clk 0:02:01]}  Bg5 {[%clk 0:01:35]} 20. Nd5 {[%clk 0:01:59]}  Qb7 {[%clk 0:01:32]} 21. a3 {[%clk 0:01:50]}  a5 {[%clk 0:01:31]} 22. axb4 {[%clk 0:01:49]}  axb4 {[%clk 0:01:31]} 23. Ra5 {[%clk 0:01:32]}  f5 {[%clk 0:01:16]} 24. exf5 {[%clk 0:01:26]}  gxf5 {[%clk 0:01:13]} 25. Rb5 {[%clk 0:01:12]}  Qf7 {[%clk 0:01:13]} 26. f3 {[%clk 0:00:58]}  Qg6 {[%clk 0:01:03]} 27. Re1 {[%clk 0:00:52]}  e4 {[%clk 0:00:59]} 28. fxe4 {[%clk 0:00:49]}  fxe4 {[%clk 0:00:58]} 29. Nxe4 {[%clk 0:00:19]}  Bf5 {[%clk 0:00:56]} 30. Nxg5 {[%clk 0:00:15]}  Qxg5 {[%clk 0:00:41]} 31. Qe2 {[%clk 0:00:13]}  Rce8 {[%clk 0:00:22]} 32. Qxe8 {[%clk 0:00:06]}  Rxe8 {[%clk 0:00:22]} 33. Rxe8+ {[%clk 0:00:05]}  Kf7 {[%clk 0:00:23]} 34. Re7+ {[%clk 0:00:05]}  Qxe7 {[%clk 0:00:10]} 35. Nxe7 {[%clk 0:00:04]}  Kxe7 {[%clk 0:00:11]} 36. Rxb4 {[%clk 0:00:03]}  Nd3 {[%clk 0:00:10]} 37. Rb7+ {[%clk 0:00:03]} 1-0


[Site "https://www.chess.com"]

[Event "Titled Tuesday Blitz November 08 Late 2022"]
[White "Ambartsumova, Karina"]
[Black "Haszon, David"]
[WhiteFideId "4166299"]
[BlackFideId "733610"]
[WhiteElo "2319"]
[BlackElo "2211"]
[Result "0-1"]
[Round "10"]
[TimeControl "180+1"]
[Date "2022.11.09"]
[WhiteClock "0:00:12"]
[BlackClock "0:00:20"]

1. e4 {[%clk 0:03:00]}  c6 {[%clk 0:02:57]} 2. Ne2 {[%clk 0:03:00]}  d5 {[%clk 0:02:55]} 3. e5 {[%clk 0:03:00]}  g6 {[%clk 0:02:53]} 4. Ng3 {[%clk 0:03:00]}  Bg7 {[%clk 0:02:53]} 5. d4 {[%clk 0:03:00]}  h5 {[%clk 0:02:53]} 6. h4 {[%clk 0:02:59]}  c5 {[%clk 0:02:51]} 7. c3 {[%clk 0:02:59]}  Nc6 {[%clk 0:02:51]} 8. Na3 {[%clk 0:02:51]}  a6 {[%clk 0:02:30]} 9. Nc2 {[%clk 0:02:49]}  Qb6 {[%clk 0:02:25]} 10. Be2 {[%clk 0:02:48]}  Nh6 {[%clk 0:02:03]} 11. O-O {[%clk 0:02:19]}  Nf5 {[%clk 0:01:43]} 12. Nxf5 {[%clk 0:02:14]}  Bxf5 {[%clk 0:01:44]} 13. dxc5 {[%clk 0:02:10]}  Qxc5 {[%clk 0:01:35]} 14. Be3 {[%clk 0:02:10]}  Qa5 {[%clk 0:01:27]} 15. f4 {[%clk 0:02:00]}  e6 {[%clk 0:01:16]} 16. Nd4 {[%clk 0:01:56]}  Nxd4 {[%clk 0:01:09]} 17. Bxd4 {[%clk 0:01:56]}  Bf8 {[%clk 0:01:08]} 18. Kh2 {[%clk 0:01:50]}  Qd8 {[%clk 0:00:53]} 19. g3 {[%clk 0:01:50]}  Qc7 {[%clk 0:00:54]} 20. Rc1 {[%clk 0:01:47]}  b5 {[%clk 0:00:52]} 21. Qd2 {[%clk 0:01:46]}  Bc5 {[%clk 0:00:50]} 22. Qe3 {[%clk 0:01:45]}  Rc8 {[%clk 0:00:47]} 23. b4 {[%clk 0:01:39]}  Be7 {[%clk 0:00:35]} 24. Kg2 {[%clk 0:01:33]}  O-O {[%clk 0:00:34]} 25. Bf3 {[%clk 0:01:30]}  a5 {[%clk 0:00:32]} 26. a3 {[%clk 0:01:13]}  Ra8 {[%clk 0:00:28]} 27. Rf2 {[%clk 0:01:03]}  Rfb8 {[%clk 0:00:24]} 28. Rh1 {[%clk 0:00:55]}  Kf8 {[%clk 0:00:24]} 29. Qe2 {[%clk 0:00:54]}  Ke8 {[%clk 0:00:19]} 30. Qb2 {[%clk 0:00:37]}  Qc6 {[%clk 0:00:17]} 31. Rc1 {[%clk 0:00:35]}  Rc8 {[%clk 0:00:16]} 32. Be2 {[%clk 0:00:34]}  Rcb8 {[%clk 0:00:15]} 33. Qd2 {[%clk 0:00:29]}  Be4+ {[%clk 0:00:15]} 34. Kg1 {[%clk 0:00:29]}  axb4 {[%clk 0:00:15]} 35. cxb4 {[%clk 0:00:20]}  Qb7 {[%clk 0:00:13]} 36. Rc3 {[%clk 0:00:20]}  Rc8 {[%clk 0:00:13]} 37. Rf1 {[%clk 0:00:20]}  Rxc3 {[%clk 0:00:13]} 38. Qxc3 {[%clk 0:00:20]}  Rc8 {[%clk 0:00:13]} 39. Qb2 {[%clk 0:00:20]}  Qc6 {[%clk 0:00:13]} 40. Rd1 {[%clk 0:00:18]}  Qc2 {[%clk 0:00:13]} 41. Bxb5+ {[%clk 0:00:17]}  Kf8 {[%clk 0:00:12]} 42. Qxc2 {[%clk 0:00:17]}  Rxc2 {[%clk 0:00:12]} 43. Bf2 {[%clk 0:00:17]}  Ra2 {[%clk 0:00:11]} 44. a4 {[%clk 0:00:16]}  Bxb4 {[%clk 0:00:11]} 45. Rb1 {[%clk 0:00:16]}  Ba5 {[%clk 0:00:11]} 46. Rc1 {[%clk 0:00:16]}  Rd2 {[%clk 0:00:08]} 47. Bc6 {[%clk 0:00:14]}  Bc2 {[%clk 0:00:06]} 48. Bb5 {[%clk 0:00:12]}  Rd1+ {[%clk 0:00:06]} 49. Rxd1 {[%clk 0:00:12]}  Bxd1 {[%clk 0:00:07]} 50. Kf1 {[%clk 0:00:12]}  Ke7 {[%clk 0:00:07]} 51. Bc5+ {[%clk 0:00:12]}  Kd8 {[%clk 0:00:06]} 52. Kf2 {[%clk 0:00:12]}  Bc2 {[%clk 0:00:07]} 53. Ke3 {[%clk 0:00:12]}  Bb3 {[%clk 0:00:07]} 54. Kf2 {[%clk 0:00:10]}  Bc2 {[%clk 0:00:06]} 55. Ba3 {[%clk 0:00:09]}  Bb3 {[%clk 0:00:05]} 56. Bb2 {[%clk 0:00:08]}  Bb6+ {[%clk 0:00:06]} 57. Ke2 {[%clk 0:00:07]}  Ba2 {[%clk 0:00:05]} 58. Bc3 {[%clk 0:00:07]}  Bc4+ {[%clk 0:00:03]} 59. Bxc4 {[%clk 0:00:06]}  dxc4 {[%clk 0:00:04]} 60. a5 {[%clk 0:00:07]}  Bc5 {[%clk 0:00:03]} 61. Kf3 {[%clk 0:00:05]}  Kc7 {[%clk 0:00:03]} 62. Ke4 {[%clk 0:00:04]}  Kc6 {[%clk 0:00:04]} 63. Bd4 {[%clk 0:00:03]}  Bb4 {[%clk 0:00:03]} 64. a6 {[%clk 0:00:03]}  c3 {[%clk 0:00:04]} 65. Kd3 {[%clk 0:00:04]}  c2 {[%clk 0:00:02]} 66. Kxc2 {[%clk 0:00:04]}  Be1 {[%clk 0:00:02]} 67. Kd3 {[%clk 0:00:03]}  Bxg3 {[%clk 0:00:02]} 68. Ke4 {[%clk 0:00:01]}  Bxh4 {[%clk 0:00:03]} 69. Kf3 {[%clk 0:00:01]}  Be7 {[%clk 0:00:03]} 70. Kg2 {[%clk 0:00:01]}  Bd8 {[%clk 0:00:04]} 71. Kf3 {[%clk 0:00:02]}  Be7 {[%clk 0:00:04]} 72. Kg2 {[%clk 0:00:02]}  Kc7 {[%clk 0:00:04]} 73. Kf3 {[%clk 0:00:03]}  Kb8 {[%clk 0:00:05]} 74. Kg2 {[%clk 0:00:03]}  Ka8 {[%clk 0:00:06]} 75. Kf3 {[%clk 0:00:03]}  Bd8 {[%clk 0:00:06]} 76. Kg2 {[%clk 0:00:04]}  Bc7 {[%clk 0:00:06]} 77. Kf3 {[%clk 0:00:04]}  Bb8 {[%clk 0:00:07]} 78. Kg2 {[%clk 0:00:04]}  Ba7 {[%clk 0:00:08]} 79. Bc3 {[%clk 0:00:05]}  Bb6 {[%clk 0:00:08]} 80. Bb4 {[%clk 0:00:03]}  Bd8 {[%clk 0:00:08]} 81. Bc5 {[%clk 0:00:03]}  Bc7 {[%clk 0:00:08]} 82. Kf3 {[%clk 0:00:03]}  Bb8 {[%clk 0:00:09]} 83. Kg3 {[%clk 0:00:02]}  Ba7 {[%clk 0:00:09]} 84. Bd6 {[%clk 0:00:03]}  Be3 {[%clk 0:00:09]} 85. Bb4 {[%clk 0:00:01]}  Ka7 {[%clk 0:00:09]} 86. Kf3 {[%clk 0:00:01]}  Bg1 {[%clk 0:00:09]} 87. Be1 {[%clk 0:00:01]}  Kxa6 {[%clk 0:00:09]} 88. Kg2 {[%clk 0:00:01]}  Bc5 {[%clk 0:00:09]} 89. Bh4 {[%clk 0:00:02]}  Kb7 {[%clk 0:00:09]} 90. Kf3 {[%clk 0:00:03]}  Kc6 {[%clk 0:00:10]} 91. Ke4 {[%clk 0:00:04]}  Kd7 {[%clk 0:00:11]} 92. Be1 {[%clk 0:00:04]}  Be7 {[%clk 0:00:11]} 93. Bg3 {[%clk 0:00:04]}  Ke8 {[%clk 0:00:11]} 94. Be1 {[%clk 0:00:05]}  Kf8 {[%clk 0:00:12]} 95. Bg3 {[%clk 0:00:05]}  Kg7 {[%clk 0:00:13]} 96. Bf2 {[%clk 0:00:06]}  f6 {[%clk 0:00:13]} 97. exf6+ {[%clk 0:00:05]}  Bxf6 {[%clk 0:00:14]} 98. Kf3 {[%clk 0:00:06]}  Kf7 {[%clk 0:00:15]} 99. Be3 {[%clk 0:00:07]}  Ke7 {[%clk 0:00:14]} 100. Bf2 {[%clk 0:00:07]}  Kd6 {[%clk 0:00:15]} 101. Ke4 {[%clk 0:00:08]}  Bc3 {[%clk 0:00:14]} 102. Bg3 {[%clk 0:00:08]}  Ke7 {[%clk 0:00:14]} 103. Bh4+ {[%clk 0:00:08]}  Bf6 {[%clk 0:00:13]} 104. Bg3 {[%clk 0:00:08]}  Kf7 {[%clk 0:00:12]} 105. Bf2 {[%clk 0:00:08]}  h4 {[%clk 0:00:10]} 106. Kf3 {[%clk 0:00:08]}  Ke7 {[%clk 0:00:10]} 107. Kg4 {[%clk 0:00:08]}  Kd6 {[%clk 0:00:10]} 108. Be1 {[%clk 0:00:08]}  Kd5 {[%clk 0:00:10]} 109. Bf2 {[%clk 0:00:07]}  Ke4 {[%clk 0:00:10]} 110. Bc5 {[%clk 0:00:07]}  h3 {[%clk 0:00:10]} 111. Kxh3 {[%clk 0:00:07]}  Kxf4 {[%clk 0:00:10]} 112. Bd6+ {[%clk 0:00:08]}  e5 {[%clk 0:00:10]} 113. Kg2 {[%clk 0:00:08]}  Kf5 {[%clk 0:00:11]} 114. Kf3 {[%clk 0:00:08]}  g5 {[%clk 0:00:12]} 115. Bc5 {[%clk 0:00:08]}  g4+ {[%clk 0:00:12]} 116. Kg2 {[%clk 0:00:08]}  Bh4 {[%clk 0:00:12]} 117. Be3 {[%clk 0:00:08]}  Ke4 {[%clk 0:00:13]} 118. Bc5 {[%clk 0:00:08]}  Kd3 {[%clk 0:00:13]} 119. Bd6 {[%clk 0:00:07]}  e4 {[%clk 0:00:13]} 120. Bf4 {[%clk 0:00:06]}  e3 {[%clk 0:00:13]} 121. Bd6 {[%clk 0:00:02]}  e2 {[%clk 0:00:14]} 122. Bb4 {[%clk 0:00:03]}  Kc2 {[%clk 0:00:12]} 123. Kh2 {[%clk 0:00:02]}  Kd1 {[%clk 0:00:12]} 124. Kg2 {[%clk 0:00:03]}  Be1 {[%clk 0:00:13]} 125. Bc5 {[%clk 0:00:02]}  Bd2 {[%clk 0:00:13]} 126. Bf2 {[%clk 0:00:03]}  Bf4 {[%clk 0:00:13]} 127. Bh4 {[%clk 0:00:03]}  e1=Q {[%clk 0:00:13]} 128. Bxe1 {[%clk 0:00:03]}  Kxe1 {[%clk 0:00:13]} 129. Kg1 {[%clk 0:00:03]}  Ke2 {[%clk 0:00:13]} 130. Kh1 {[%clk 0:00:04]}  Ke3 {[%clk 0:00:13]} 131. Kg2 {[%clk 0:00:05]}  Ke4 {[%clk 0:00:14]} 132. Kg1 {[%clk 0:00:05]}  Kf5 {[%clk 0:00:15]} 133. Kg2 {[%clk 0:00:06]}  Kg5 {[%clk 0:00:16]} 134. Kg1 {[%clk 0:00:07]}  Be5 {[%clk 0:00:17]} 135. Kg2 {[%clk 0:00:08]}  Bg7 {[%clk 0:00:18]} 136. Kg1 {[%clk 0:00:09]}  Kh4 {[%clk 0:00:19]} 137. Kg2 {[%clk 0:00:10]}  g3 {[%clk 0:00:19]} 138. Kg1 {[%clk 0:00:11]}  Kh3 {[%clk 0:00:20]} 139. Kh1 {[%clk 0:00:11]}  g2+ {[%clk 0:00:20]} 140. Kg1 {[%clk 0:00:12]}  Bd4# {[%clk 0:00:20]} 0-1


[Site "https://www.chess.com"]